bitfinex/quotes_ETHUSD_20260108
["timestamp","ask_amount","ask_price","bid_price","bid_amount"]
[1767841124202,0.001,3158.3,3157.5,1.00692423]
[1767841125113,0.001,3158.3,3157.8,1.00692423]
[1767841125822,0.001,3158.3,3157.9,1.00692423]
[1767841130244,0.831,3159.0,3158.3,1.00692423]
[1767841130414,0.18274566,3158.9,3158.3,1.00692423]
[1767841130840,1.17920221,3158.9,3158.3,1.00692423]
[1767841131014,3.99665539,3159.0,3158.3,1.00692423]
[1767841131216,0.831,3159.0,3158.3,1.00692423]
[1767841131818,0.99645655,3159.1,3158.3,1.00692423]
[1767841132016,4.16192822,3159.1,3158.3,1.00692423]
[1767841132627,3.16522431,3159.4,3158.4,1.00692423]
[1767841132833,3.16522431,3159.4,3158.6,1.00692423]
[1767841133236,3.1652615,3159.3,3158.6,1.00692423]
[1767841133508,0.001,3158.8,3158.6,1.00692423]
[1767841134527,0.001,3158.8,3158.7,1.00692423]
[1767841138642,0.99745655,3159.2,3158.6,3.16593375]
[1767841138942,0.99745655,3159.2,3158.5,3.89999611]
[1767841139145,0.99745655,3159.2,3158.5,4.90687203]
[1767841139466,0.99745655,3159.2,3158.6,0.4906872]
[1767841142143,0.99745655,3159.2,3158.6,1.45976491]
[1767841143665,4.16281937,3159.2,3158.6,1.45976491]
[1767841143858,0.99106961,3159.1,3158.2,3.99735069]
[1767841144061,0.99106961,3159.1,3158.2,1.79561153]
[1767841144376,0.99106961,3159.1,3158.2,4.13095614]
[1767841144874,0.99106961,3159.1,3158.0,1.79561153]
[1767841145037,0.001,3158.9,3158.3,0.96461153]
[1767841145236,0.001,3158.9,3158.4,4.13076973]
[1767841145829,0.001,3158.9,3158.4,0.96461153]
[1767841146852,0.001,3158.9,3158.4,4.13075088]
[1767841147059,0.001,3158.9,3158.4,4.86046198]
[1767841151275,0.99206961,3158.9,3158.4,0.7297111]
[1767841152160,0.99206961,3158.9,3158.1,0.17956115]
[1767841152161,4.15773062,3158.9,3158.1,0.17956115]
[1767841152360,4.15773062,3158.9,3157.8,0.96461153]
[1767841152361,0.99106961,3158.8,3157.9,3.16657553]
[1767841152567,0.99106961,3158.8,3157.8,0.96461153]
[1767841152769,0.99106961,3158.8,3157.9,0.03166661]
[1767841153778,0.99106961,3158.8,3158.0,3.16655696]
[1767841154203,0.99206961,3158.9,3158.1,0.96461153]
[1767841154505,0.001,3158.9,3158.3,0.96461153]
[1767841155960,0.001,3158.9,3158.4,0.96461153]
[1767841157000,0.001,3158.9,3158.6,0.002]
[1767841158060,0.001,3158.9,3158.6,0.96661153]
[1767841159470,0.001,3158.9,3158.6,0.002]
[1767841159702,0.99206961,3158.9,3158.6,0.002]
[1767841161973,0.99106961,3158.8,3158.6,0.002]
[1767841162178,0.99106961,3158.7,3157.7,4.13145265]
[1767841162378,0.99106961,3158.7,3157.8,0.96461153]
[1767841163082,0.99106961,3158.5,3157.8,0.96461153]
[1767841163286,1.40677253,3158.4,3157.8,0.96461153]
[1767841164083,0.4167698,3158.9,3157.8,0.96461153]
[1767841164084,1.40783941,3158.9,3157.9,0.99627814]
[1767841164276,0.99206961,3158.9,3157.9,0.96461153]
[1767841164478,0.99206961,3158.9,3158.1,0.96461153]
[1767841164479,0.001,3158.9,3158.1,0.96461153]
[1767841164673,0.001,3158.9,3158.3,0.96461153]
[1767841168203,0.001,3158.9,3158.4,0.96461153]
[1767841168408,0.001,3158.9,3158.4,0.99627313]
[1767841168706,0.001,3158.9,3158.6,0.96461153]
[1767841169782,0.001,3158.9,3158.5,0.73287558]
[1767841169987,0.001,3158.9,3158.4,4.13075499]
[1767841170199,0.001,3158.9,3158.5,0.96461153]
[1767841170708,0.001,3158.9,3158.7,0.96461153]
[1767841171703,0.001,3159.2,3158.4,6.33232016]
[1767841172025,0.99206961,3159.2,3158.5,0.96461153]
[1767841172181,0.99206961,3159.2,3158.6,0.72969317]
[1767841174312,0.001,3159.2,3158.7,0.95793191]
[1767841176613,1.00078849,3159.2,3158.6,3.89557386]
[1767841177809,1.00078849,3159.2,3158.7,3.1658474]
[1767841178625,0.001,3159.2,3158.7,4.12377931]
[1767841178829,0.001,3159.2,3158.8,1.44327916]
[1767841179041,0.001,3159.2,3158.9,0.95793191]
[1767841179530,0.001,3159.2,3158.8,0.48534725]
[1767841180029,0.99978849,3159.1,3158.5,3.16601303]
[1767841180189,0.001,3159.2,3158.6,4.1238654]
[1767841180389,0.001,3159.2,3158.9,0.002]
[1767841183941,1.00078849,3159.2,3158.9,0.002]
[1767841187140,0.001,3159.2,3158.9,0.002]
[1767841189244,1.00078849,3159.2,3158.9,0.002]
[1767841196242,0.001,3159.2,3158.9,0.002]
[1767841201055,0.001,3159.2,3158.9,0.95993191]
[1767841201237,0.001,3159.2,3158.9,0.002]
[1767841201642,1.00078849,3159.2,3158.9,0.002]
[1767841202245,0.001,3159.2,3158.9,0.002]
[1767841204831,0.92285854,3159.2,3158.9,0.002]
[1767841208561,0.92285854,3159.2,3158.5,0.002]
[1767841208957,0.92185854,3159.1,3158.5,0.002]
[1767841210762,0.92185854,3158.9,3158.5,0.002]
[1767841217373,0.92185854,3158.9,3158.8,0.002]
[1767841217573,1.3315949,3158.9,3158.8,0.002]
[1767841218276,1.3315949,3158.9,3158.5,0.002]
[1767841218850,0.92185854,3158.8,3158.5,0.002]
[1767841220573,0.001,3158.9,3158.5,0.002]
[1767841220754,0.92285854,3158.9,3158.5,0.002]
[1767841222110,0.92185854,3158.8,3158.5,0.002]
[1767841223977,0.001,3158.9,3158.5,0.002]
[1767841226566,0.92285854,3158.9,3158.5,0.002]
[1767841226766,0.92185854,3158.7,3158.0,0.99721396]
[1767841227083,0.92185854,3158.7,3158.0,1.82821396]
[1767841227285,0.92185854,3158.7,3158.1,0.99721396]
[1767841227584,0.92185854,3158.7,3158.0,0.831]
[1767841227585,0.92185854,3158.6,3158.0,0.831]
[1767841227791,0.92185854,3158.6,3158.0,0.99721396]
[1767841227954,0.92185854,3158.4,3157.8,0.831]
[1767841228784,0.92185854,3158.4,3157.8,3.16675266]
[1767841229092,0.92185854,3158.4,3157.7,4.99504592]
[1767841229569,0.92185854,3158.4,3157.4,0.99721396]
[1767841229770,0.92185854,3158.3,3157.6,0.99721396]
[1767841229970,0.92185854,3158.5,3157.7,4.16407305]
[1767841230170,0.92185854,3158.5,3157.8,1.41362127]
[1767841230376,0.92185854,3158.7,3157.9,1.02888057]
[1767841230573,0.92285854,3158.9,3157.9,0.99721396]
[1767841230755,0.001,3158.9,3158.1,0.99721396]
[1767841231457,0.001,3158.9,3158.3,0.99721396]
[1767841231672,0.001,3158.9,3158.4,0.99721396]
[1767841236999,0.95342693,3158.9,3158.3,0.73299916]
[1767841237298,0.95342693,3158.9,3157.5,0.91829675]
[1767841237508,0.95342693,3158.9,3157.3,0.002]
[1767841238085,0.95242693,3158.7,3157.3,0.92029675]
[1767841238287,0.95242693,3158.5,3157.3,0.92029675]
[1767841238491,0.95242693,3158.5,3157.3,0.002]
[1767841238698,0.95242693,3158.3,3157.3,0.002]
[1767841240072,0.95242693,3158.1,3157.3,0.002]
[1767841240275,0.95242693,3158.0,3157.3,0.002]
[1767841241797,0.95242693,3157.8,3157.3,0.002]
[1767841244802,0.95242693,3157.7,3157.3,0.002]
[1767841246080,0.95242693,3157.6,3157.3,0.002]
[1767841246284,0.95242693,3157.5,3157.3,0.002]
[1767841247500,0.95242693,3157.5,3157.2,0.002]
[1767841248201,0.95242693,3157.4,3157.0,0.002]
[1767841250805,4.84806897,3157.6,3157.0,0.002]
[1767841251011,0.95242693,3157.5,3157.0,0.002]
[1767841251306,0.95242693,3157.4,3157.0,0.002]
[1767841252619,4.11960631,3157.4,3157.0,0.002]
[1767841253205,0.95242693,3157.4,3157.0,0.002]
[1767841254306,0.95242693,3157.3,3157.0,0.002]
[1767841255304,4.58014089,3157.3,3156.8,0.002]
[1767841255505,0.95242693,3157.2,3156.8,0.002]
[1767841257901,0.46043993,3157.3,3156.8,0.92029675]
[1767841258102,0.95242693,3157.4,3156.8,0.92029675]
[1767841258492,0.4848069,3157.5,3156.8,0.92029675]
[1767841259010,3.65188834,3157.5,3156.8,0.92029675]
[1767841259209,4.60431527,3157.5,3156.8,0.92029675]
[1767841261090,0.95242693,3157.4,3156.8,0.92029675]
[1767841261290,4.89674417,3157.4,3156.8,0.92029675]
[1767841265904,0.95134078,3157.3,3156.8,0.002]
[1767841266694,0.95134078,3157.3,3157.1,0.002]
[1767841266896,0.95134078,3157.2,3156.4,0.002]
[1767841267096,0.95134078,3157.1,3156.4,0.002]
[1767841267397,0.95134078,3157.1,3156.4,0.9310108]
[1767841267926,0.95134078,3157.1,3156.4,4.09917595]
[1767841270533,0.95134078,3157.1,3156.4,0.9310108]
[1767841271228,0.95134078,3157.0,3156.4,0.002]
[1767841271812,0.95134078,3157.0,3156.4,0.9310108]
[1767841276637,0.95134078,3156.9,3156.4,0.002]
[1767841278641,0.95134078,3156.9,3156.7,0.002]
[1767841278843,0.001,3156.8,3156.4,0.002]
[1767841287226,0.95134078,3157.5,3156.5,0.9290108]
[1767841287562,0.95134078,3157.4,3156.7,0.9290108]
[1767841287962,4.1185101,3157.4,3156.7,0.9290108]
[1767841288161,0.95134078,3157.3,3156.7,0.9290108]
[1767841290830,4.11848023,3157.5,3156.7,0.9290108]
[1767841291030,4.11848023,3157.5,3156.7,0.9310108]
[1767841291427,0.95134078,3157.3,3156.4,0.002]
[1767841291643,0.95134078,3157.0,3156.4,0.002]
[1767841291867,0.95134078,3157.0,3156.1,0.9310108]
[1767841292167,0.96669993,3156.8,3156.1,0.9310108]
[1767841292326,0.96669993,3156.8,3156.2,0.93033135]
[1767841292531,4.13427743,3157.0,3156.2,0.93033135]
[1767841292932,0.96669993,3156.9,3156.2,0.93033135]
[1767841294268,4.13437705,3156.9,3156.2,0.93033135]
[1767841294637,0.96669993,3156.8,3156.2,0.93033135]
[1767841297148,4.13446762,3156.8,3156.2,0.93033135]
[1767841297355,0.96669993,3156.7,3156.1,0.002]
[1767841299469,0.96669993,3156.7,3156.1,0.93233135]
[1767841299470,3.16795325,3156.7,3156.1,0.93233135]
[1767841299875,3.16795325,3156.7,3156.1,0.002]
[1767841300082,4.13465318,3156.7,3156.1,0.93233135]
[1767841300284,3.16795325,3156.7,3156.1,0.93233135]
[1767841300465,3.93954117,3156.7,3156.1,0.93233135]
[1767841302766,3.93954117,3156.7,3156.4,0.002]
[1767841303071,0.77158792,3156.7,3156.4,0.93233135]
[1767841303277,3.58123478,3156.8,3156.4,0.93233135]
[1767841305171,6.74908082,3156.8,3156.4,0.93233135]
[1767841305377,6.74908082,3156.8,3156.4,0.002]
[1767841307947,0.41344676,3156.8,3156.4,0.93233135]
[1767841308165,4.13436689,3156.9,3156.4,0.002]
[1767841308372,0.96669993,3156.8,3156.4,0.002]
[1767841309378,3.16766696,3156.9,3156.4,0.002]
[1767841310086,0.93033135,3158.8,3156.4,0.002]
[1767841310087,0.96669993,3157.5,3156.4,0.93233135]
[1767841310259,3.16716845,3157.4,3156.5,0.93033135]
[1767841310963,3.16710878,3157.5,3156.5,0.93033135]
[1767841311362,3.16710878,3157.5,3156.7,0.93033135]
[1767841314663,0.001,3157.2,3156.7,0.93033135]
[1767841315364,0.001,3157.2,3156.6,0.93033135]
[1767841316693,0.001,3157.2,3156.8,0.93033135]
[1767841319296,0.001,3157.2,3156.9,0.93033135]
[1767841320365,0.001,3157.2,3156.4,0.833]
[1767841320366,0.96769993,3157.2,3156.4,0.002]
[1767841320680,0.96769993,3157.2,3156.0,0.002]
[1767841320681,0.96669993,3157.1,3156.1,0.93233135]
[1767841320878,0.96669993,3156.9,3156.1,0.93233135]
[1767841321495,0.17986999,3157.0,3156.2,0.93033135]
[1767841321496,4.31422336,3157.0,3156.2,0.93033135]
[1767841321999,0.96669993,3156.9,3156.2,0.93033135]
[1767841322505,0.96669993,3156.9,3156.1,0.91179939]
[1767841323779,3.16776482,3156.8,3156.1,0.91179939]
[1767841324087,3.91596364,3156.8,3156.1,0.91179939]
[1767841326409,0.74819882,3156.8,3156.1,0.91179939]
[1767841326610,3.16770948,3156.9,3156.1,0.002]
[1767841326911,0.94882095,3158.2,3156.1,0.002]
[1767841326912,4.11568969,3157.7,3156.4,0.002]
[1767841327112,0.94882095,3157.6,3156.9,0.05333855]
[1767841328292,0.94882095,3157.6,3156.9,3.22098813]
[1767841329314,0.94882095,3157.8,3156.9,3.22098813]
[1767841329615,0.94882095,3158.3,3156.9,6.38865261]
[1767841330203,0.94882095,3158.3,3156.9,9.55631709]
[1767841330514,0.94882095,3158.5,3157.0,1.74721958]
[1767841330720,0.94882095,3158.5,3157.3,4.74815417]
[1767841330926,0.94982095,3158.9,3157.4,0.831]
[1767841331295,0.94982095,3158.9,3157.4,0.91944107]
[1767841331696,0.94982095,3158.9,3157.8,4.83659524]
[1767841331697,0.001,3158.9,3157.8,4.83659524]
[1767841331896,0.94882095,3159.9,3158.3,4.74815417]
[1767841332107,0.94882095,3159.9,3158.4,0.831]
[1767841332306,0.94882095,3159.9,3158.5,9.49817949]
[1767841333018,0.94882095,3159.8,3158.5,6.33211966]
[1767841333391,0.94882095,3159.8,3158.5,9.49817949]
[1767841333718,0.94882095,3159.8,3158.6,1.03291795]
[1767841334603,0.94882095,3159.8,3158.7,6.33171874]
[1767841335907,4.11358005,3159.8,3158.7,6.33171874]
[1767841336124,0.94882095,3159.8,3158.7,6.33171874]
[1767841339037,0.001,3159.5,3158.7,6.33171874]
[1767841339212,0.001,3159.5,3158.8,1.05305497]
[1767841339538,0.001,3159.5,3158.9,0.831]
[1767841341626,0.001,3159.5,3159.0,6.33111744]
[1767841343860,0.94882095,3160.0,3159.0,6.33111744]
[1767841346340,0.94882095,3160.0,3159.0,9.49667616]
[1767841346517,0.94882095,3160.0,3159.1,1.0644222]
[1767841347443,3.16183762,3160.7,3159.2,0.92655315]
[1767841347618,0.94882095,3160.6,3159.4,0.92655315]
[1767841347817,0.94882095,3160.6,3159.6,0.92655315]
[1767841348335,0.94882095,3160.6,3159.8,0.92655315]
[1767841348531,0.94882095,3160.6,3159.8,1.65217995]
[1767841349846,0.94882095,3160.9,3159.9,0.92655315]
[1767841350046,0.94882095,3160.9,3160.1,0.92655315]
[1767841350256,0.94882095,3160.8,3160.1,0.92655315]
[1767841350416,3.16369896,3160.9,3159.9,0.831]
[1767841350417,0.94882095,3160.6,3159.9,0.831]
[1767841350618,0.41125199,3160.7,3160.0,0.92655315]
[1767841350851,0.94882095,3161.0,3160.1,0.92655315]
[1767841351153,0.94882095,3161.0,3160.2,0.92655315]
[1767841351918,0.94882095,3161.2,3160.2,0.92655315]
[1767841352319,0.94882095,3161.2,3160.2,3.16426644]
[1767841352522,0.96089595,3161.1,3160.2,3.16426644]
[1767841352825,0.96089595,3161.1,3160.3,0.72685176]
[1767841353029,0.96089595,3161.1,3160.3,0.831]
[1767841354262,0.96089595,3161.1,3160.5,4.10384595]
[1767841354435,0.96089595,3161.4,3160.6,0.93978963]
[1767841356472,0.96089595,3161.4,3160.7,0.93977156]
[1767841356656,0.96089595,3161.4,3160.8,0.83]
[1767841356970,0.96089595,3162.1,3160.8,0.83]
[1767841358171,0.96089595,3162.1,3160.8,1.76976268]
[1767841358469,0.96089595,3161.9,3160.9,4.10340982]
[1767841358667,0.96089595,3161.9,3160.9,0.9397539]
[1767841358851,0.96089595,3161.7,3160.8,0.83]
[1767841360364,0.96089595,3161.6,3160.8,4.93348842]
[1767841360564,0.96089595,3161.6,3160.9,0.93973665]
[1767841361043,0.96089595,3161.8,3160.9,0.93973665]
[1767841362459,0.96189595,3161.8,3160.9,0.93973665]
[1767841362768,0.96189595,3161.8,3161.0,1.74944423]
[1767841362940,0.96189595,3161.8,3161.1,0.93796139]
[1767841365459,0.96189595,3161.8,3161.2,0.93793681]
[1767841365460,0.001,3161.8,3161.2,0.93793681]
[1767841365841,0.001,3161.8,3161.4,0.93793681]
[1767841366042,0.001,3161.8,3161.4,0.93617855]
[1767841366241,0.001,3161.8,3161.5,1.11279641]
[1767841366949,0.96089595,3161.7,3160.9,3.16357359]
[1767841367285,3.16377023,3161.8,3160.7,0.41037125]
[1767841367286,0.96089595,3161.5,3160.7,0.41037125]
[1767841367570,0.96089595,3161.5,3160.7,0.83]
[1767841368970,0.96089595,3161.5,3160.7,3.99383528]
[1767841369181,0.96089595,3161.5,3160.5,4.10020409]
[1767841369182,0.96089595,3161.5,3160.5,0.93616264]
[1767841369347,0.96089595,3161.5,3160.6,0.83]
[1767841369348,0.96089595,3161.3,3160.6,0.83]
[1767841370859,0.96089595,3161.3,3160.5,0.83]
[1767841371256,0.96089595,3161.2,3160.5,0.82821137]
[1767841371462,0.96089595,3161.1,3160.4,0.83]
[1767841371651,3.16336517,3161.2,3160.2,0.83]
[1767841371652,0.00116296,3160.4,3160.2,0.83]
[1767841371981,0.96089595,3160.8,3160.2,0.83]
[1767841372475,0.96089595,3160.8,3160.0,0.93613189]
[1767841372682,0.96089595,3160.8,3160.1,0.83]
[1767841374162,0.96089595,3160.7,3159.8,4.1324868]
[1767841374356,0.96089595,3160.7,3159.9,1.24324868]
[1767841374958,0.96089595,3160.7,3160.0,0.83]
[1767841375557,0.96089595,3160.7,3160.0,1.76610253]
[1767841375756,0.96089595,3161.4,3160.1,0.93610253]
[1767841376178,3.16325562,3161.3,3160.1,0.93610253]
[1767841376382,0.96089595,3161.2,3160.2,0.03164356]
[1767841376579,0.96089595,3161.2,3160.1,4.10050874]
[1767841376951,0.96089595,3161.2,3160.2,0.9360954]
[1767841377181,3.16381679,3161.8,3160.4,0.94538633]
[1767841377182,0.001,3161.8,3160.4,0.94538633]
[1767841377395,0.96089595,3161.6,3160.6,0.94538633]
[1767841377698,0.96089595,3161.6,3160.7,1.12608902]
[1767841378785,0.96089595,3161.6,3160.8,3.16375601]
[1767841378965,0.96089595,3161.6,3160.7,4.28991336]
[1767841379278,0.96089595,3161.5,3160.7,4.28991336]
[1767841379455,0.96089595,3161.5,3160.7,0.18070269]
[1767841380275,0.96089595,3161.5,3160.8,0.33446391]
[1767841380473,0.96089595,3161.5,3160.8,1.16446391]
[1767841380982,0.96089595,3161.5,3160.8,4.32819176]
[1767841381352,0.96089595,3161.5,3160.8,1.16446391]
[1767841382072,0.99072513,3161.4,3160.3,3.78]
[1767841382758,6.32651124,3161.3,3160.1,0.83]
[1767841382958,0.98207251,3161.2,3160.1,3.9944473]
[1767841385159,0.98207251,3161.0,3160.1,3.9944473]
[1767841385487,0.98207251,3161.0,3160.1,0.83]
[1767841385701,0.98207251,3161.0,3160.4,0.002]
[1767841386181,0.98207251,3160.8,3160.4,0.002]
[1767841387469,0.001,3160.9,3160.4,0.002]
[1767841387672,0.98207251,3161.6,3160.5,0.98266926]
[1767841389088,0.98207251,3161.6,3160.7,0.98266926]
[1767841389294,0.98207251,3161.6,3160.8,1.24466255]
[1767841389492,0.98207251,3161.6,3160.8,2.22733181]
[1767841389997,0.98207251,3161.6,3160.8,1.24466255]
[1767841391278,0.98207251,3161.6,3160.8,4.40840009]
[1767841391979,0.98207251,3161.5,3160.8,1.24466255]
[1767841392169,0.98207251,3161.5,3160.9,0.53911245]
[1767841394401,0.98207251,3161.5,3160.9,3.70275528]
[1767841395313,0.98207251,3161.5,3160.9,0.53911245]
[1767841395682,0.98207251,3161.5,3160.9,3.70275486]
[1767841395877,0.98207251,3162.1,3160.9,4.68542412]
[1767841396112,0.98207251,3162.0,3161.0,1.01430481]
[1767841397981,0.98207251,3161.9,3161.0,4.17776963]
[1767841398285,0.98207251,3162.1,3161.1,0.98266926]
[1767841398480,0.98207251,3162.1,3161.3,0.98266926]
[1767841398679,0.98207251,3162.1,3161.3,1.81266926]
[1767841399512,0.98207251,3162.1,3161.3,4.97592195]
[1767841399713,0.98207251,3162.1,3161.3,1.81266926]
[1767841400014,0.98207251,3162.0,3161.3,1.81266926]
[1767841400304,0.98207251,3162.0,3161.4,0.57101161]
[1767841400506,0.98207251,3162.3,3161.4,1.55368087]
[1767841401491,0.98207251,3162.2,3161.5,0.83]
[1767841403892,0.98207251,3162.2,3161.5,4.97572303]
[1767841404202,0.98207251,3162.2,3161.6,0.4975723]
[1767841404394,0.98207251,3162.2,3161.6,1.48024156]
[1767841406218,0.98207251,3162.1,3161.2,3.19489384]
[1767841406397,0.98207251,3162.1,3161.4,3.16309284]
[1767841406599,0.98207251,3162.1,3161.4,0.83]
[1767841407322,0.98207251,3162.1,3161.1,3.16342346]
[1767841407613,0.98207251,3162.1,3161.1,0.83]
[1767841407818,0.98207251,3162.1,3161.3,3.16323332]
[1767841408018,0.98207251,3162.0,3161.3,3.16323332]
[1767841408316,0.98207251,3162.0,3161.2,3.34458041]
[1767841409512,0.98207251,3162.0,3161.2,0.18126693]
[1767841409713,0.98207251,3162.0,3161.2,3.34461775]
[1767841410110,0.98207251,3162.0,3161.3,0.03163255]
[1767841410312,0.98207251,3162.0,3161.3,0.65396931]
[1767841410816,0.001,3161.9,3161.3,0.65396931]
[1767841411114,0.98307251,3161.9,3161.3,0.65396931]
[1767841411319,0.001,3161.9,3161.4,0.98266926]
[1767841412316,0.94716056,3161.9,3161.3,0.65396931]
[1767841412619,0.94716056,3161.9,3161.0,0.83]
[1767841413005,0.94716056,3161.9,3161.1,3.1634363]
[1767841413210,0.94716056,3161.9,3161.2,3.16334579]
[1767841413515,0.94716056,3161.9,3161.3,3.16324383]
[1767841413716,0.94716056,3161.9,3161.2,3.16328186]
[1767841413919,0.94716056,3161.9,3161.2,3.97672994]
[1767841414218,0.94716056,3161.9,3161.2,0.81344808]
[1767841415589,0.94716056,3161.9,3161.2,3.97680273]
[1767841416085,0.94716056,3161.9,3161.2,0.81344808]
[1767841416793,0.94616056,3161.8,3161.2,0.81344808]
[1767841417807,0.94616056,3161.8,3160.8,4.14139351]
[1767841418006,0.94616056,3161.8,3161.0,0.83]
[1767841418209,0.001,3161.9,3161.1,0.97766914]
[1767841418386,0.001,3161.9,3161.2,6.3266784]
[1767841418387,0.94616056,3161.8,3161.2,6.3266784]
[1767841418590,0.94616056,3161.8,3161.3,0.03163255]
[1767841418815,0.94616056,3161.8,3161.3,0.76523883]
[1767841419194,0.001,3161.9,3161.3,0.76523883]
[1767841419388,0.94716056,3161.9,3161.3,0.73360628]
[1767841419619,0.94716056,3161.9,3161.3,0.97766914]
[1767841419620,0.001,3161.9,3161.3,0.97766914]
[1767841419924,0.001,3161.9,3161.3,1.00930169]
[1767841420398,0.001,3161.9,3161.4,7.30398026]
[1767841420721,0.001,3161.9,3161.5,1.80766914]
[1767841422518,0.94616056,3162.1,3161.6,3.16295546]
[1767841422823,0.94616056,3162.4,3161.7,0.49706246]
[1767841424027,0.94616056,3162.4,3161.5,0.83]
[1767841424328,0.94616056,3162.4,3161.6,0.97766914]
[1767841424857,0.94616056,3162.4,3161.6,4.14058718]
[1767841425222,0.94616056,3162.4,3161.6,7.30354264]
[1767841425721,0.94616056,3162.4,3161.6,4.14058718]
[1767841425924,0.94616056,3162.4,3161.7,0.81336136]
[1767841426162,0.94616056,3162.3,3161.7,0.81336136]
[1767841426298,0.94616056,3162.3,3161.4,0.83]
[1767841426922,0.94616056,3162.1,3161.4,0.83]
[1767841427332,0.94616056,3162.1,3161.3,3.16323102]
[1767841427925,0.94616056,3162.1,3161.4,3.16315482]
[1767841428234,0.94616056,3162.1,3161.4,3.5624703]
[1767841429832,0.94616056,3162.1,3161.4,0.39931548]
[1767841431741,0.94616056,3162.1,3161.4,3.56247096]
[1767841432411,0.94616056,3162.1,3161.4,4.5401401]
[1767841432618,0.94616056,3162.1,3161.5,0.97766914]
[1767841432943,0.94616056,3162.1,3161.6,0.77032957]
[1767841433820,0.94616056,3161.7,3160.4,0.97966914]
[1767841434007,0.94098995,3161.7,3160.9,3.16362075]
[1767841434210,0.94098995,3161.7,3160.9,3.48018283]
[1767841434513,0.93146701,3161.7,3160.8,3.16370999]
[1767841435139,0.93146701,3161.7,3160.4,0.002]
[1767841435326,0.93146701,3161.7,3161.4,0.002]
[1767841435526,0.93146701,3161.7,3160.9,3.1636463]
[1767841435738,0.93146701,3161.7,3160.7,0.002]
[1767841436446,0.93146701,3161.7,3160.7,0.97966914]
[1767841436646,0.94616056,3161.6,3160.7,0.97966914]
[1767841436808,0.94616056,3161.6,3160.4,3.16615643]
[1767841436809,0.94616056,3161.4,3160.4,3.16615643]
[1767841437019,0.94616056,3161.4,3160.4,4.14382557]
[1767841437231,0.94616056,3161.3,3160.4,0.002]
[1767841437537,0.94616056,3161.3,3160.4,0.97966914]
[1767841438044,6.32575774,3161.7,3160.4,0.97966914]
[1767841438045,0.94616056,3161.8,3160.6,0.97766914]
[1767841438214,1.77616056,3161.8,3160.8,0.97766914]
[1767841438407,4.93894092,3161.8,3160.8,0.97766914]
[1767841439245,4.10894092,3161.8,3160.8,0.97766914]
[1767841439645,0.94616056,3161.7,3160.8,0.97766914]
[1767841439814,0.94616056,3161.7,3160.8,1.15165783]
[1767841440245,4.10902045,3161.7,3160.9,0.97766914]
[1767841442059,0.96219815,3161.6,3160.9,0.97766914]
[1767841442869,0.96219815,3161.6,3160.8,0.17398869]
[1767841443312,0.96219815,3161.6,3160.9,3.16364857]
[1767841443518,0.96219815,3161.6,3160.9,4.98406828]
[1767841444666,0.96219815,3161.6,3161.0,0.99746629]
[1767841447280,0.96219815,3161.6,3160.9,3.98660199]
[1767841447565,0.96219815,3161.6,3161.2,0.002]
[1767841449742,3.99280151,3161.8,3161.2,0.002]
[1767841449743,0.96219815,3161.7,3161.2,0.002]
[1767841452084,0.96219815,3161.7,3161.2,0.73463778]
[1767841452875,0.96219815,3162.1,3161.2,1.73210407]
[1767841453083,0.96219815,3161.9,3161.2,1.73210407]
[1767841454282,0.96219815,3161.9,3161.3,3.16325562]
[1767841454987,0.96219815,3161.9,3161.2,3.16530057]
[1767841456404,0.96219815,3161.9,3161.2,3.79817424]
[1767841456583,0.96219815,3161.9,3161.2,0.63487367]
[1767841456889,0.96219815,3161.8,3161.2,0.002]
[1767841458956,0.96219815,3161.7,3161.2,0.002]
[1767841460296,0.96319815,3161.5,3161.2,0.002]
[1767841460671,0.001,3161.5,3161.2,0.002]
[1767841467993,0.96319815,3161.5,3161.2,0.002]
[1767841468292,0.96319815,3161.5,3161.2,1e-08]
[1767841470196,0.001,3161.5,3161.2,1e-08]
[1767841471493,0.96319815,3161.5,3161.2,1e-08]
[1767841472985,0.001,3161.5,3161.2,1e-08]
[1767841473567,0.92848318,3163.0,3161.2,0.9864182]
[1767841473782,0.92848318,3162.8,3161.2,0.9864182]
[1767841475314,3.99168332,3162.9,3161.2,0.9864182]
[1767841475315,0.92848318,3162.6,3161.2,0.9864182]
[1767841475616,0.92848318,3162.6,3161.2,1e-08]
[1767841475617,0.92848318,3162.5,3161.2,1e-08]
[1767841475788,0.92848318,3162.3,3161.2,1e-08]
[1767841477816,0.92848318,3162.1,3161.2,1e-08]
[1767841481707,0.92848318,3161.9,3161.2,1e-08]
[1767841481911,0.92848318,3161.8,3161.2,1e-08]
[1767841482625,3.16235532,3162.2,3161.2,1e-08]
[1767841482626,0.92848318,3162.2,3161.2,1e-08]
[1767841482919,0.92848318,3161.9,3161.3,0.98641819]
[1767841483084,0.92848318,3161.9,3161.2,0.73134866]
[1767841483288,0.92848318,3161.9,3161.2,1e-08]
[1767841484297,0.92848318,3161.9,3161.2,3.16335569]
[1767841484521,0.92848318,3161.9,3161.5,0.002]
[1767841486828,3.16218518,3162.4,3161.5,0.002]
[1767841486829,0.92440758,3163.4,3163.0,0.1651]
[1767841487024,0.92848318,3165.0,3163.0,0.1651]
[1767841487025,9.47927199,3164.8,3163.0,0.1651]
[1767841487328,0.92848318,3164.6,3163.0,0.1651]
[1767841487693,0.92848318,3164.6,3163.0,1.15151819]
[1767841488189,0.92848318,3164.6,3163.2,0.98641819]
[1767841488389,0.92848318,3164.6,3163.4,7.30872961]
[1767841488722,0.92848318,3164.5,3163.5,0.83]
[1767841488894,0.92848318,3164.3,3163.5,0.83]
[1767841489228,0.92848318,3164.3,3163.6,0.98641819]
[1767841489518,0.92848318,3164.3,3163.5,0.83]
[1767841489715,0.92848318,3164.3,3163.6,0.83]
[1767841490193,0.92848318,3164.3,3163.4,3.16115571]
[1767841490394,0.92848318,3164.3,3163.5,0.83]
[1767841490594,0.92848318,3164.3,3163.4,3.16115571]
[1767841490595,0.92848318,3164.2,3163.4,0.83]
[1767841490794,0.92848318,3164.0,3163.2,3.16133998]
[1767841491324,0.92848318,3164.0,3163.3,3.1612388]
[1767841493225,0.92848318,3164.0,3163.1,0.83]
[1767841493426,0.92848318,3164.0,3163.0,3.99154898]
[1767841493624,0.92848318,3164.0,3163.1,3.16142097]
[1767841493808,0.92848318,3163.9,3163.2,3.16134944]
[1767841494199,0.92848318,3163.9,3163.1,3.99144362]
[1767841494522,0.92848318,3163.9,3163.2,3.16132572]
[1767841495128,0.92848318,3163.9,3163.2,6.3226813]